Cogmind - Beta 10.2 @@@ ROGUE MODE // 2021.04.03 @ 10:55:09 Player: onyhow Result: Destroyed by as-99932 with Assembled Rifle Performance ------------- Evolutions (0) 0 Regions Visited (2) 400 Robots Destroyed (21) 105 Value Destroyed (404) 404 Prototype IDs (2) 40 Alien Tech Used (0) 0 Bonus (0) 0 TOTAL SCORE: 949 Bonus ------- None Cogmind --------- Core Integrity 0/250 Matter 295/300 Energy 85/100 System Corruption 1% Temperature Cool (70) Movement Core (350) Ox6 Location -10/Mines Parts ------- > --- POWER (1) -------- (None) > --- PROPULSION (2) --- (None) > --- UTILITY (2) ------ Large Storage Unit Signal Interpreter > --- WEAPON (2) ------- Particle Cannon > --- INVENTORY (10) --- Light Ion Engine Heat Sink Improved Heat Sink Large Storage Unit Particle Cannon Grenade Launcher Peak State ------------ > --- POWER ------------ Ion Engine > --- PROPULSION ------- Light Treads Light Treads > --- UTILITY ---------- Heat Sink Large Storage Unit > --- WEAPON ----------- Particle Cannon Assault Rifle > --- INVENTORY -------- Light Ion Engine Improved Heat Sink Large Storage Unit Signal Interpreter Particle Cannon Particle Cannon Grenade Launcher [Rating: 9] Favorites ----------- Power Ion Engine Engine Ion Engine Propulsion Light Treads Treads Light Treads Utility Small Storage Unit Device Heat Sink Storage Small Storage Unit Processor Signal Interpreter Weapon Assault Rifle Energy Gun Small Laser Energy Cannon Particle Cannon Ballistic Gun Assault Rifle Build | -11 -10 -10 ------- Run | Scr Mat Min Slots Evolved . | . . . Power . | . . . Propulsion . | . . . Utility . | . . . Weapon . | . . . Parts Attached 14 | 6 5 3 Power 2 | 1 1 . Engine 2 | 1 1 . Core . | . . . Reactor . | . . . Propulsion 2 | 2 . . Treads 2 | 2 . . Leg . | . . . Wheel . | . . . Hover . | . . . Flight . | . . . Utility 4 | 1 2 1 Device 1 | . 1 . Storage 2 | 1 1 . Processor 1 | . . 1 Hackware . | . . . Protection . | . . . Artifact . | . . . Weapon 6 | 2 2 2 Energy Gun 2 | 1 1 . Energy Cannon 2 | . . 2 Ballistic Gun 2 | 1 1 . Ballistic Cannon . | . . . Launcher . | . . . Special Weapon . | . . . Impact Weapon . | . . . Slashing Weapon . | . . . Piercing Weapon . | . . . Special Melee Weapon . | . . . Unidentified Prototypes . | . . . Parts Lost 6 | . . 6 Power 1 | . . 1 Propulsion 2 | . . 2 Utility . | . . . Weapon 3 | . . 3 Highest Loss Streak 5 | . . 5 Average Slot Usage (%) 89 | . 88 97 Engine 14 | . 14 14 Treads 27 | . 28 26 Device 4 | . 3 11 Storage 14 | . 14 14 Energy Gun 11 | . 14 . Energy Cannon 2 | . . 14 Ballistic Gun 13 | . 14 13 Naked Turns . | . . . Heaviest Build 29 | 12 29 28 Greatest Support 40 | 20 40 40 Greatest Overweight (x) 2 | 2 . 1 Average Overweight (x) . | . . . Largest Inventory Capacity 12 | 6 12 10 Average Capacity 7 | 5 7 10 Most Carried 9 | 6 9 7 Average Carried 5 | 3 5 6 Final Capacity 10 | 6 10 10 Final Carried 7 | 5 7 6 Class Distribution -------------------- 100% | Mutant Dominant Class ---------------- Mutant | -10/Materials Mutant | -10/Mines Resources | -11 -10 -10 ----------- Run | Scr Mat Min Matter Collected 458 | 261 166 31 Remotely . | . . . Salvage Created 534 | 66 367 101 Parts 46 | 2 38 6 Haulers Intercepted . | . . . Recyclers Shooed 4 | . 3 1 Parts Field Recycled . | . . . Retrieved Matter . | . . . Parts Self-Destructed . | . . . Prevented . | . . . Kills | -11 -10 -10 ------- Run | Scr Mat Min Combat Hostiles Destroyed 16 | . 13 3 Guns 14 | . 13 1 Cannons 2 | . . 2 Classes Destroyed 7 | 1 5 1 Worker 1 | . 1 . Builder 1 | . 1 . Recycler 1 | 1 . . Watcher 2 | . 2 . Swarmer 9 | . 9 . Grunt 6 | . 4 2 Demolisher 1 | . . 1 Best Kill Streak 5 | 1 5 2 Combat Bots Only 4 | . 4 2 Max Kills in Single Turn 2 | 1 2 1 Gunslinging 1 | . 1 . Exploded . | . . . Melee . | . . . Uniques/NPCs Destroyed . | . . . Combat | -11 -10 -10 -------- Run | Scr Mat Min Damage Taken 1029 | . 384 645 Core 253 | . 114 139 Absorbed by Shields . | . . . Core Remaining (%) 100 | 100 . . Volleys Fired 51 | 1 38 12 Largest 2 | 2 2 2 Hottest 88 | 60 60 88 Shots Fired 93 | 2 71 20 Gun 83 | 2 71 10 Cannon 10 | . . 10 Launcher . | . . . Special . | . . . Kinetic 48 | 1 38 9 Thermal 41 | 1 30 10 Explosive . | . . . Electromagnetic 4 | . 3 1 Robot Hit Streak 8 | 2 8 5 Robot Miss Streak 4 | . 4 1 Penetration Max . | . . . Secondary Targets 3 | . 3 . Max Gunslinging Chain 1 | . 1 . Shots Hit Robots 64 | 2 46 16 Core Hits 31 | 2 25 4 Critical Hits . | . . . Critical Kills . | . . . Critical Parts Destroyed . | . . . Melee Attacks . | . . . Impact . | . . . Slashing . | . . . Piercing . | . . . Sneak Attacks . | . . . Combat Hostiles . | . . . Follow-up Attacks . | . . . Damage Inflicted 894 | 26 616 252 Guns 731 | 26 616 89 Cannons 163 | . . 163 Explosions . | . . . Melee . | . . . Ramming . | . . . Kinetic 399 | 15 308 76 Thermal 442 | 11 268 163 Explosive . | . . . Electromagnetic 53 | . 40 13 Impact . | . . . Slashing . | . . . Piercing . | . . . Highest Corruption 1 | . 1 1 Average Corruption 1 | . 1 1 Corruption Purged . | . . . Effects 2 | . . 2 Energy Discharges 1 | . . 1 Data Loss (minor) 1 | . . 1 Overload Shots . | . . . Overflow Damage . | . . . Projectiles . | . . . Explosions . | . . . Melee . | . . . Knockbacks . | . . . Impact . | . . . Kinetic . | . . . Secondary . | . . . Self-Inflicted Damage . | . . . Shots . | . . . Rammed . | . . . Targets Rammed . | . . . Kicked . | . . . Crushed . | . . . Highest Temperature 70 | . 36 70 Average Temperature 24 | . 23 25 Received Heat Transfer 188 | . 72 116 Siege Activations . | . . . Robots Corrupted . | . . . Combat Hostiles . | . . . Parts Fried . | . . . Impact Corruptions . | . . . Robots Melted . | . . . Combat Hostiles . | . . . Parts Melted 1 | . 1 . Heat Transferred 946 | 25 625 296 Parts Sabotaged . | . . . Parts Stolen . | . . . Parts Stripped . | . . . Power Chain Reactions . | . . . Missiles Intercepted . | . . . Alert | -11 -10 -10 ------- Run | Scr Mat Min Peak Influence 310 | 5 310 102 Initial 62 | . 3 62 Average 118 | 3 141 95 Maximum Alert Level 1 | . 1 . Low Security (%) 72 | 100 63 100 Level 1 27 | . 36 . Level 2 . | . . . Level 3 . | . . . Level 4 . | . . . Level 5 . | . . . High Security . | . . . Max Security . | . . . Squads Dispatched 3 | . 3 . Investigation . | . . . Extermination . | . . . Reinforcement 3 | . 3 . Assault . | . . . Garrison . | . . . Intercept . | . . . Construction Impeded . | . . . Haulers Reinforced . | . . . Stealth | -11 -10 -10 --------- Run | Scr Mat Min Distress Signals . | . . . Communications Jammed . | . . . Distress Signals . | . . . Times Spotted 39 | . 27 12 Peak Tracking Total 16 | . 4 16 Tactical Retreats . | . . . Traps | -11 -10 -10 ------- Run | Scr Mat Min Traps Triggered 1 | . 1 . Indirectly . | . . . Trap Hack Attempts . | . . . Triggered . | . . . Disarmed . | . . . Reprogrammed . | . . . Reused . | . . . Traps Extracted . | . . . Installed . | . . . Triggered . | . . . Machines | -11 -10 -10 ---------- Run | Scr Mat Min Machines Disabled . | . . . Max in Single Turn . | . . . Machines Sabotaged . | . . . Garrisons Compromised . | . . . Overloaded Fab Kills . | . . . Fab Network Shutdowns . | . . . Hacking | -11 -10 -10 --------- Run | Scr Mat Min Machines Accessed 4 | . 4 . Terminals 4 | . 4 . Fabricators . | . . . Repair Stations . | . . . Recycling Units . | . . . Scanalyzers . | . . . Garrison Access . | . . . Total Hacks 15 | . 15 . Successful 10 | . 10 . Failed 5 | . 5 . Catastrophic . | . . . Database Lockouts . | . . . Manual 8 | . 8 . Terminals 15 | . 15 . Fabricators . | . . . Repair Stations . | . . . Recycling Units . | . . . Scanalyzers . | . . . Garrison Access . | . . . Terminal Hacks 10 | . 10 . Part Schematic 3 | . 3 . Prototype ID Bank 1 | . 1 . Branch Access Points 1 | . 1 . Alert Level 1 | . 1 . Locate Traps 1 | . 1 . Investigation Status 1 | . 1 . Zone Layout 2 | . 2 . Fabricator Hacks . | . . . Repair Station Hacks . | . . . Recycling Unit Hacks . | . . . Scanalyzer . | . . . Garrison Access Hacks . | . . . Unauthorized Hacks . | . . . Terminals . | . . . Fabricators . | . . . Repair Stations . | . . . Recycling Units . | . . . Scanalyzers . | . . . Garrison Access . | . . . Data Cores Recovered . | . . . Used . | . . . Hacking Detections 4 | . 4 . Full Trace Events 2 | . 2 . Feedback Events . | . . . Feedback Blocked . | . . . Robot Schematics Acquired . | . . . Robots Built . | . . . Matter . | . . . Time . | . . . Total Robot Build Rating . | . . . Part Schematics Acquired 3 | . 3 . Parts Built . | . . . Matter . | . . . Time . | . . . Total Part Build Rating . | . . . Parts Repaired . | . . . Time . | . . . Parts Recycled . | . . . Recycled Matter . | . . . Retrieved Matter . | . . . Retrieved Components . | . . . Parts Scanalyzed . | . . . Part Schematics Acquired . | . . . Parts Damaged . | . . . Bothacking | -11 -10 -10 ------------ Run | Scr Mat Min Used RIF Installer . | . . . Robots Hacked . | . . . Non-combat . | . . . Combat . | . . . Robot Hacks Applied . | . . . Relay Couplers Released . | . . . Robots Rewired . | . . . Allies Hacked . | . . . Hacks Repelled . | . . . Allies | -11 -10 -10 -------- Run | Scr Mat Min Total Allies . | . . . Largest Group . | . . . Highest-Rated Group . | . . . Highest-Rated Ally . | . . . Total Orders . | . . . Ally Attacks . | . . . Total Damage . | . . . Kills . | . . . Allies Corrupted . | . . . Allies Melted . | . . . Intel | -11 -10 -10 ------- Run | Scr Mat Min Robot Analysis Total . | . . . Derelict Logs Recovered . | . . . Drone Launches . | . . . Drone Recoveries . | . . . Exploration | -11 -10 -10 ------------- Run | Scr Mat Min Turns Passed 1103 | 129 823 151 Spaces Moved 576 | 71 433 72 Core 7 | 7 . . Treads 569 | 64 433 72 Legs . | . . . Wheels . | . . . Hover . | . . . Flight . | . . . Fastest Speed 50 | 50 160 160 Average Speed 159 | 154 160 160 Slowest Speed 180 | 160 160 180 Overloaded Moves . | . . . Propulsion Burnouts . | . . . Robots Hopped . | . . . Cave-ins Triggered . | . . . Exploration Rate (%) 31 | 5 73 16 Regions Visited 2 Branch Regions 1 Pre-discovered Areas . | . . . Known Exits Taken 1 | . 1 . Unknown Exits Taken 1 | 1 . . Scrap Searched . | . . . Spaces Dug . | . . . Terrain Destroyed . | . . . Melee . | . . . Projectile . | . . . AOE . | . . . Terrain Rammed . | . . . Walls Destroyed . | . . . Machines Disabled . | . . . Actions | -11 -10 -10 --------- Run | Scr Mat Min Total 671 | 88 495 88 Wait 1 | . 1 . Move 574 | 70 432 72 Hop . | . . . Pick Up 23 | 11 11 1 Fast Attach . | . . . Attach 10 | 6 2 2 Detach . | . . . Swap 4 | . 3 1 Drop 8 | . 8 . Fire 51 | 1 38 12 Melee . | . . . Ram . | . . . Kick . | . . . Crush . | . . . Escape Stasis . | . . . Rewire . | . . . Trap . | . . . Miscellaneous . | . . . Route ------- -11/Scrapyard -10/Materials (discovered 4 exits: *Mat x2 / *Min x2) -10/Mines (discovered 1 exit: *Mat) History --------- Turn | Location | Event 13 | -11/Scrapyard | Discovered new exit (range 15) 130 | -11/Scrapyard | Entered Materials 203 | -10/Materials | Identified exit to Mines 306 | -10/Materials | Build established: Mutant 680 | -10/Materials | Discovered new exit (range 15) 833 | -10/Materials | Discovered new exit (range 8) 953 | -10/Materials | Entered Mines 1055 | -10/Mines | Discovered new exit (range 16) 1079 | -10/Mines | Identified exit to Materials 1090 | -10/Mines | Assembled infested the area 1097 | -10/Mines | Core integrity fell below 50% 1103 | -10/Mines | Core integrity fell below 20% 1104 | -10/Mines | Destroyed by as-99932 with Assembled Rifle Last Messages --------------- 00977_ R-06 Scavenger collects Aluminum Leg. 00979_ Acquired 3 matter. 00981_ System corrupted: Component data lost. 00982_ Acquired Imp. Heat Sink. 01055_ EXIT=FOUND 01079_ EXIT=IDENTIFIED: MATERIALS 01090_ ALERT: Infestation in the mines, dispatching Demolisher response squad. 01091_ T-07 Excavator destroyed. 01092_ C-30 ARC bursts open, deploying its payload. 01092_ D-53 Grenadier unfolds itself. 01096_ Lgt. Treads destroyed. 01096_ Assault Rifle destroyed. 01096_ Particle Cannon destroyed. 01098_ Lgt. Treads destroyed. 01098_ D-53 Grenadier destroyed. 01100_ Ion Engine destroyed. 01102_ The unstable cave ceiling collapses. 01103_ D-53 Grenadier destroyed. 01104_ The unstable cave ceiling collapses. Map ----- +----------------------------------------------------+ | ?????????????????????????????????????????????????? | | ?????????????????????????????????????????????????? | | ????????????????????????????????????????####?????? | | ???????????????????????????????????????## ##????? | | ???????????????????????????????????????# ##???? | | ??????????????????????????????????# #### ##??? | | ??????????????????????????????????# %* ##?? | | ??????????????????????????????????###### % ##? | | ????????????????????? ???????????????# = #? | | ??????????????????? ???????????????## #? | | ??????????????????? ????????????????# ## ##? | | ??????????????????? ????????????????# ######?? | | ???????????????????#aa ????????????##### ######## | | ??????????????????## ????????????# | | ??????????????????? a ???????????## ########## | | ??????????????????? a #?????????## #????????# | | ???????????????????? aa ??#####?## ##????????# | | ???????????????????? ??# gg### ##?????????# | | ????????????????????? ??# ## ##??????????# | | ?????????????????????#%!#??# # ##???????????# | | ????????????????????## #### ##????????????# | | ??????????????????### a ##????????????## | | ?????????????????## a #????????????## | | ?????????????????# ##????????????# | | ?????????????????# < #????????????# | | ??????????????????# @ #????????????# ! | | ??????????????????# ##????????????## | | ??????????????????## ###??????????????## | | ???????????????????## ##?????????????????## | | ????????????????????## # ##??????????????????## | | ?????????????????????#### ##????????????????????? | | ????????????????????????? ?????????????????????? | | ????????????????????????? ?????????????????????? | | ????????????????????????? ????????????????????? | | ????????????????????????? ????????????????????? | | ????????????????????????? ???????????????????? | | ?????????????????????????? ???????????????????? | | ??????????????????????????? #??????????????????? | | ???????????????????????????####??????????????????? | | ?????????????????????????????????????????????????? | | ?????????????????????????????????????????????????? | | ?????????????????????????????????????????????????? | | ?????????????????????????????????????????????????? | | ?????????????????????????????????????????????????? | | ?????????????????????????????????????????????????? | | ?????????????????????????????????????????????????? | | ?????????????????????????????????????????????????? | | ?????????????????????????????????????????????????? | | ?????????????????????????????????????????????????? | | ?????????????????????????????????????????????????? | +----------------------------------------------------+ Best States ------------- Heat Dissipation 35 Energy Generation 10 Energy Capacity 250 Matter Stores 300 Matter Capacity 300 Sight Range 16 Terrain Scan Density 10 Evasion (%) 40 Recoil Reduction 2 Item Schematics ----------------- Med. Storage Unit | -10/Materials | Hacked Lrg. Storage Unit | -10/Materials | Hacked Lgt. Treads | -10/Materials | Hacked Robot Schematics ------------------ None Fabricated ------------ Nothing Alien Tech Used ----------------- None Achievements -------------- None Challenges ------------ None Game ------ Seed DamperThunderMicroactuators Manual? 0 Play Time 00:09:57 Cumulative 65.4 hours Start 2021.04.03 @ 10:46:18 End 2021.04.03 @ 10:55:09 Sessions 1 Manual Loads 0 Difficulty Rogue Special Mode None Game No. 47 Rogue 47 Adventurer 0 Explorer 0 Win Type - Total 0 Types 0/0/0/0/0/0/0/0/0 Lore% 23 Gallery% 38 Achievement% 27 Wizard Run 0 Options --------- ASCII 0 Keyboard 0 Movement Mouse Keybinds 0 Fullscreen 2 Font 18/SmallcapsGlow Map View 76x50 Tactical HUD 1 Map Filters NONE Filters NONE Steam 1 RUN: fd68f824-eaa1-4216-a1a2-d767e0190c5f